{"text_format":"3","workbook":"xlsx","n_sheets":1,"sheets":["Протокол ШЭ ВОШ по предмету"],"not_rendered":{"external_links":2,"defined_names":1},"read":"whole","date_system":"1900"}

{"sheet":"Протокол ШЭ ВОШ по предмету","index":0,"n_rows":33,"n_cols":15,"rows_kept":33}
["№","Фамилия","Имя","Отчество","Дата рождения","Пол","Участник с ОВЗ (да/нет)","Класс обучения","Класс участия","Балл","Максимальный балл","Статус","Призёр муниципального этапа прошлого года","ФИО учителя","Место работы учителя"]
[1,"Ибраев","Карим"," Артурович","2011-08-06","М","нет",5,5,15,50,"Участник ","нет","Жандаров Шаукат Шамилевич","Муниципальное бюджетное общеобразовательное учреждение \"МБОУ АСОШ №2\" г.Арск Республики Татарстан"]
[2,"Магсумов","Карим","Ахтямович","2011-03-09","М","нет",5,5,13,50,"Участник ","нет","Жандаров Шаукат Шамилевич","Муниципальное бюджетное общеобразовательное учреждение \"МБОУ АСОШ №2\" г.Арск Республики Татарстан"]
[3,"Садыков","Арсений","Арнольдович","2011-05-31","М","нет",5,5,20,50,"участник","нет","Жандаров Шаукат Шамилевич","Муниципальное бюджетное общеобразовательное учреждение \"МБОУ АСОШ №2\" г.Арск Республики Татарстан"]
[4,"Насифуллина","Эльвира ","Маратовна","2011-07-08","ж","нет",5,5,19,50,"участник","нет","Жандаров Шаукат Шамилевич","Муниципальное бюджетное общеобразовательное учреждение \"МБОУ АСОШ №2\" г.Арск Республики Татарстан"]
[5,"Насыбуллин","Искандер","Маратович","2011-08-05","М","нет",5,5,19,50,"Участник ","нет","Жандаров Шаукат Шамилевич","Муниципальное бюджетное общеобразовательное учреждение \"МБОУ АСОШ №2\" г.Арск Республики Татарстан"]
[6,"Камалиев ","Ильяс ","Искандарович","2011-09-19","М","нет",5,5,18,50,"Участник ","нет","Жандаров Шаукат Шамилевич","Муниципальное бюджетное общеобразовательное учреждение \"МБОУ АСОШ №2\" г.Арск Республики Татарстан"]
[7,"Махмутов","Булат","Ильшатович","2011-12-10","М","нет",5,5,12,50,"Участник ","нет","Жандаров Шаукат Шамилевич","Муниципальное бюджетное общеобразовательное учреждение \"МБОУ АСОШ №2\" г.Арск Республики Татарстан"]
[8,{"$f":"'[1]Протокол ШЭ ВОШ по предмету'!B8","v":"Батыршина "},{"$f":"'[1]Протокол ШЭ ВОШ по предмету'!C8","v":"Исламия "},{"$f":"'[1]Протокол ШЭ ВОШ по предмету'!D8","v":"Рустемовна"},{"$f":"'[1]Протокол ШЭ ВОШ по предмету'!E8","v":"2010-01-04"},{"$f":"'[1]Протокол ШЭ ВОШ по предмету'!F8","v":"ж"},{"$f":"'[1]Протокол ШЭ ВОШ по предмету'!G8","v":"нет"},{"$f":"'[1]Протокол ШЭ ВОШ по предмету'!H8","v":6},{"$f":"'[1]Протокол ШЭ ВОШ по предмету'!I8","v":6},19,{"$f":"'[1]Протокол ШЭ ВОШ по предмету'!K8","v":50},{"$f":"'[1]Протокол ШЭ ВОШ по предмету'!L8","v":"Участник "},{"$f":"'[1]Протокол ШЭ ВОШ по предмету'!M8","v":"нет"},{"$f":"'[1]Протокол ШЭ ВОШ по предмету'!N8","v":"Жандаров Шаукат Шамилевич"},{"$f":"'[1]Протокол ШЭ ВОШ по предмету'!O8","v":"Муниципальное бюджетное общеобразовательное учреждение \"МБОУ АСОШ №2\" г.Арск Республики Татарстан"}]
[9,{"$f":"'[1]Протокол ШЭ ВОШ по предмету'!B9","v":"Гайфуллина "},{"$f":"'[1]Протокол ШЭ ВОШ по предмету'!C9","v":"Ильвина "},{"$f":"'[1]Протокол ШЭ ВОШ по предмету'!D9","v":"Ирековна"},{"$f":"'[1]Протокол ШЭ ВОШ по предмету'!E9","v":"2010-07-23"},{"$f":"'[1]Протокол ШЭ ВОШ по предмету'!F9","v":"ж"},{"$f":"'[1]Протокол ШЭ ВОШ по предмету'!G9","v":"нет"},{"$f":"'[1]Протокол ШЭ ВОШ по предмету'!H9","v":6},{"$f":"'[1]Протокол ШЭ ВОШ по предмету'!I9","v":6},{"$f":"'[1]Протокол ШЭ ВОШ по предмету'!J9","v":17},{"$f":"'[1]Протокол ШЭ ВОШ по предмету'!K9","v":50},{"$f":"'[1]Протокол ШЭ ВОШ по предмету'!L9","v":"Участник "},{"$f":"'[1]Протокол ШЭ ВОШ по предмету'!M9","v":"нет"},{"$f":"'[1]Протокол ШЭ ВОШ по предмету'!N9","v":"Жандаров Шаукат Шамилевич"},{"$f":"'[1]Протокол ШЭ ВОШ по предмету'!O9","v":"Муниципальное бюджетное общеобразовательное учреждение \"МБОУ АСОШ №2\" г.Арск Республики Татарстан"}]
[10,{"$f":"'[1]Протокол ШЭ ВОШ по предмету'!B10","v":"Журавлева "},{"$f":"'[1]Протокол ШЭ ВОШ по предмету'!C10","v":"Яна"},{"$f":"'[1]Протокол ШЭ ВОШ по предмету'!D10","v":"Ильдусовна"},{"$f":"'[1]Протокол ШЭ ВОШ по предмету'!E10","v":"2010-06-03"},{"$f":"'[1]Протокол ШЭ ВОШ по предмету'!F10","v":"ж"},{"$f":"'[1]Протокол ШЭ ВОШ по предмету'!G10","v":"нет"},{"$f":"'[1]Протокол ШЭ ВОШ по предмету'!H10","v":6},{"$f":"'[1]Протокол ШЭ ВОШ по предмету'!I10","v":6},{"$f":"'[1]Протокол ШЭ ВОШ по предмету'!J10","v":15},{"$f":"'[1]Протокол ШЭ ВОШ по предмету'!K10","v":50},{"$f":"'[1]Протокол ШЭ ВОШ по предмету'!L10","v":"Участник "},{"$f":"'[1]Протокол ШЭ ВОШ по предмету'!M10","v":"нет"},{"$f":"'[1]Протокол ШЭ ВОШ по предмету'!N10","v":"Жандаров Шаукат Шамилевич"},{"$f":"'[1]Протокол ШЭ ВОШ по предмету'!O10","v":"Муниципальное бюджетное общеобразовательное учреждение \"МБОУ АСОШ №2\" г.Арск Республики Татарстан"}]
[11,{"$f":"'[1]Протокол ШЭ ВОШ по предмету'!B11","v":"Степанова "},{"$f":"'[1]Протокол ШЭ ВОШ по предмету'!C11","v":"Лилиана"},{"$f":"'[1]Протокол ШЭ ВОШ по предмету'!D11","v":"Вадимовна"},{"$f":"'[1]Протокол ШЭ ВОШ по предмету'!E11","v":"2010-04-01"},{"$f":"'[1]Протокол ШЭ ВОШ по предмету'!F11","v":"ж"},{"$f":"'[1]Протокол ШЭ ВОШ по предмету'!G11","v":"нет"},{"$f":"'[1]Протокол ШЭ ВОШ по предмету'!H11","v":6},{"$f":"'[1]Протокол ШЭ ВОШ по предмету'!I11","v":6},{"$f":"'[1]Протокол ШЭ ВОШ по предмету'!J11","v":19},{"$f":"'[1]Протокол ШЭ ВОШ по предмету'!K11","v":50},{"$f":"'[1]Протокол ШЭ ВОШ по предмету'!L11","v":"Участник "},{"$f":"'[1]Протокол ШЭ ВОШ по предмету'!M11","v":"нет"},{"$f":"'[1]Протокол ШЭ ВОШ по предмету'!N11","v":"Жандаров Шаукат Шамилевич"},{"$f":"'[1]Протокол ШЭ ВОШ по предмету'!O11","v":"Муниципальное бюджетное общеобразовательное учреждение \"МБОУ АСОШ №2\" г.Арск Республики Татарстан"}]
[12,"Мухаметшина ","Адиля","Фоатовна","2010-01-08",{"$f":"'[1]Протокол ШЭ ВОШ по предмету'!F12","v":"ж"},{"$f":"'[1]Протокол ШЭ ВОШ по предмету'!G12","v":"нет"},{"$f":"'[1]Протокол ШЭ ВОШ по предмету'!H12","v":6},{"$f":"'[1]Протокол ШЭ ВОШ по предмету'!I12","v":6},{"$f":"'[1]Протокол ШЭ ВОШ по предмету'!J12","v":18},{"$f":"'[1]Протокол ШЭ ВОШ по предмету'!K12","v":50},{"$f":"'[1]Протокол ШЭ ВОШ по предмету'!L12","v":"Участник "},{"$f":"'[1]Протокол ШЭ ВОШ по предмету'!M12","v":"нет"},{"$f":"'[1]Протокол ШЭ ВОШ по предмету'!N12","v":"Жандаров Шаукат Шамилевич"},{"$f":"'[1]Протокол ШЭ ВОШ по предмету'!O12","v":"Муниципальное бюджетное общеобразовательное учреждение \"МБОУ АСОШ №2\" г.Арск Республики Татарстан"}]
[13,"Гилязиев","Булат","Ленарович","2009-06-29",{"$f":"F8","v":"М"},{"$f":"G8","v":"нет"},7,7,20,{"$f":"K8","v":50},"участник",{"$f":"M8","v":"нет"},{"$f":"N8","v":"Жандаров Шаукат Шамилевич"},{"$f":"O8","v":"Муниципальное бюджетное общеобразовательное учреждение \"МБОУ АСОШ №2\" г.Арск Республики Татарстан"}]
[14,"Зайнуллин ","Мурат","Марселевич","2009-06-07",{"$f":"F14","v":"М"},"нет",7,7,17,50,"участник","нет","Жандаров Шаукат Шамилевич","Муниципальное бюджетное общеобразовательное учреждение \"МБОУ АСОШ №2\" г.Арск Республики Татарстан"]
[15,"Насифуллин","Алмаз ","Маратович","2009-07-15",{"$f":"F14","v":"М"},"нет",7,7,38,{"$f":"K14","v":50},"призер","нет","Жандаров Шаукат Шамилевич","Муниципальное бюджетное общеобразовательное учреждение \"МБОУ АСОШ №2\" г.Арск Республики Татарстан"]
[16,"Файзуллаев ","Аслан","Фарходович","2009-10-30","М","нет",7,7,36,50,"призер","нет","Жандаров Шаукат Шамилевич","Муниципальное бюджетное общеобразовательное учреждение \"МБОУ АСОШ №2\" г.Арск Республики Татарстан"]
[17,"Асхабова ","Ясмин","Таусовна","2008-08-14","ж",{"$f":"'[2]Протокол ШЭ ВОШ по предмету'!G7","v":"нет"},8,8,22,79,{"$f":"'[2]Протокол ШЭ ВОШ по предмету'!L7","v":"Участник"},{"$f":"'[2]Протокол ШЭ ВОШ по предмету'!M7","v":"нет"},"Жандаров Шаукат Шамилевич",{"$f":"'[2]Протокол ШЭ ВОШ по предмету'!O7","v":"Муниципальное бюджетное общеобразовательное учреждение \"МБОУ АСОШ №2\" г.Арск Республики Татарстан"}]
[18,"Ситдиков","Раиль","Рашитович","2008-09-15",{"$f":"'[2]Протокол ШЭ ВОШ по предмету'!F9","v":"М"},{"$f":"'[2]Протокол ШЭ ВОШ по предмету'!G9","v":"нет"},8,8,24,79,"участник","нет","Жандаров Шаукат Шамилевич",{"$f":"'[2]Протокол ШЭ ВОШ по предмету'!O8","v":"Муниципальное бюджетное общеобразовательное учреждение \"МБОУ АСОШ №2\" г.Арск Республики Татарстан"}]
[19,{"$f":"'[2]Протокол ШЭ ВОШ по предмету'!B10","v":"Шакирова "},{"$f":"'[2]Протокол ШЭ ВОШ по предмету'!C10","v":"Самира"},{"$f":"'[2]Протокол ШЭ ВОШ по предмету'!D10","v":"Рустемовна"},"2008-09-11","ж",{"$f":"'[2]Протокол ШЭ ВОШ по предмету'!G10","v":"нет"},{"$f":"'[2]Протокол ШЭ ВОШ по предмету'!H10","v":8},{"$f":"'[2]Протокол ШЭ ВОШ по предмету'!I10","v":8},65,79,"призер",{"$f":"'[2]Протокол ШЭ ВОШ по предмету'!M10","v":"нет"},{"$f":"'[2]Протокол ШЭ ВОШ по предмету'!N10","v":"Жандаров Шаукат Шамилевич"},{"$f":"'[2]Протокол ШЭ ВОШ по предмету'!O10","v":"Муниципальное бюджетное общеобразовательное учреждение \"МБОУ АСОШ №2\" г.Арск Республики Татарстан"}]
[20,"Халиуллин ","Булат","Мулланурович","2008-05-18","М","нет",8,8,20,79,"Участник ","нет","Жандаров Шаукат Шамилевич","Муниципальное бюджетное общеобразовательное учреждение \"МБОУ АСОШ №2\" г.Арск Республики Татарстан"]
[21,"Гатауллина","Айгуль","Айратовна","2008-04-08","ж","нет",8,8,23,79,"Участник ","нет","Жандаров Шаукат Шамилевич","Муниципальное бюджетное общеобразовательное учреждение \"МБОУ АСОШ №2\" г.Арск Республики Татарстан"]
[22,"Абдрахманова ","Камилла","Ленаровна","2008-04-09","ж","нет",8,8,60,79,"призер  ","нет","Жандаров Шаукат Шамилевич","Муниципальное бюджетное общеобразовательное учреждение \"МБОУ АСОШ №2\" г.Арск Республики Татарстан"]
[23,"Боев ","Реналь","Русланович","2007-07-11",{"$f":"'[2]Протокол ШЭ ВОШ по предмету'!F8","v":"М"},{"$f":"'[2]Протокол ШЭ ВОШ по предмету'!G8","v":"нет"},9,9,28,80,{"$f":"'[2]Протокол ШЭ ВОШ по предмету'!L8","v":"Участник"},{"$f":"'[2]Протокол ШЭ ВОШ по предмету'!M8","v":"нет"},{"$f":"'[2]Протокол ШЭ ВОШ по предмету'!N8","v":"Жандаров Шаукат Шамилевич"},{"$f":"'[2]Протокол ШЭ ВОШ по предмету'!O8","v":"Муниципальное бюджетное общеобразовательное учреждение \"МБОУ АСОШ №2\" г.Арск Республики Татарстан"}]
[24,{"$f":"'[2]Протокол ШЭ ВОШ по предмету'!B9","v":"Комаров"},{"$f":"'[2]Протокол ШЭ ВОШ по предмету'!C9","v":"Руслан"},{"$f":"'[2]Протокол ШЭ ВОШ по предмету'!D9","v":" Евгеньевич"},"2007-03-05",{"$f":"'[2]Протокол ШЭ ВОШ по предмету'!F9","v":"М"},{"$f":"'[2]Протокол ШЭ ВОШ по предмету'!G9","v":"нет"},{"$f":"'[2]Протокол ШЭ ВОШ по предмету'!H9","v":9},{"$f":"'[2]Протокол ШЭ ВОШ по предмету'!I9","v":9},64,80,"призер",{"$f":"'[2]Протокол ШЭ ВОШ по предмету'!M9","v":"нет"},{"$f":"'[2]Протокол ШЭ ВОШ по предмету'!N9","v":"Жандаров Шаукат Шамилевич"},{"$f":"'[2]Протокол ШЭ ВОШ по предмету'!O9","v":"Муниципальное бюджетное общеобразовательное учреждение \"МБОУ АСОШ №2\" г.Арск Республики Татарстан"}]
[25,"Ахметгалимова","Ралина ","Рамилевна","2007-07-10","ж",{"$f":"'[2]Протокол ШЭ ВОШ по предмету'!G10","v":"нет"},9,9,29,80,"участник",{"$f":"'[2]Протокол ШЭ ВОШ по предмету'!M10","v":"нет"},{"$f":"'[2]Протокол ШЭ ВОШ по предмету'!N10","v":"Жандаров Шаукат Шамилевич"},{"$f":"'[2]Протокол ШЭ ВОШ по предмету'!O10","v":"Муниципальное бюджетное общеобразовательное учреждение \"МБОУ АСОШ №2\" г.Арск Республики Татарстан"}]
[26,"Бирючевская","Диана","Валериевна","2007-11-02","ж","нет",9,9,32,80,"участник","нет","Жандаров Шаукат Шамилевич","Муниципальное бюджетное общеобразовательное учреждение \"МБОУ АСОШ №2\" г.Арск Республики Татарстан"]
[27,"Сабирова","Зарина","Маратовна","2006-08-31","ж","нет",10,10,71,80,"победитель","нет","Хуснутдинова Гулсара Хасановна","Муниципальное бюджетное общеобразовательное учреждение \"МБОУ АСОШ №2\" г.Арск Республики Татарстан"]
[28,"Гарифзянова","Камиля","Эльнаровна","2006-05-29","ж","нет",10,10,67,80,"призер","нет","Хуснутдинова Гулсара Хасановна","Муниципальное бюджетное общеобразовательное учреждение \"МБОУ АСОШ №2\" г.Арск Республики Татарстан"]
[29,"Зиннатуллин","Нияз","Айратович","2006-04-15","м","нет",10,10,66,80,"призер","нет","Хуснутдинова Гулсара Хасановна","Муниципальное бюджетное общеобразовательное учреждение \"МБОУ АСОШ №2\" г.Арск Республики Татарстан"]
[30,"Ахтямов","Ислам","Фаилевич","16.102006","м","нет",10,10,63,80,"призер","нет","Хуснутдинова Гулсара Хасановна","Муниципальное бюджетное общеобразовательное учреждение \"МБОУ АСОШ №2\" г.Арск Республики Татарстан"]
[31,"Комарова","Анжелина","Евгениевна","2005-08-02","ж","нет",11,11,73,80,"победитель","нет","Хуснутдинова Гулсара Хасановна","Муниципальное бюджетное общеобразовательное учреждение \"МБОУ АСОШ №2\" г.Арск Республики Татарстан"]
[32,"Загриева","Ляйля","Азатовна","2006-03-11","ж","нет",11,11,71,80,"призер","нет","Хуснутдинова Гулсара Хасановна","Муниципальное бюджетное общеобразовательное учреждение \"МБОУ АСОШ №2\" г.Арск Республики Татарстан"]